bitfinex-derivatives/quotes_BNBF0:USTF0_20250425
["timestamp","ask_amount","ask_price","bid_price","bid_amount"]
[1745572458838,1.43490303,609.64,608.09,0.30169279]
[1745572459038,1.43490303,609.63,608.09,0.30169279]
[1745572459234,1.43490303,609.62,608.09,0.30169279]
[1745572459440,1.43490303,609.61,608.09,0.30169279]
[1745572459636,1.43490303,609.6,608.09,0.30169279]
[1745572459838,2.60898163,609.59,608.09,0.30169279]
[1745572460035,1.43490303,609.58,608.09,0.30169279]
[1745572460238,1.43476164,609.57,608.1,0.957]
[1745572460439,2.60884024,609.56,608.11,0.30169279]
[1745572460642,1.43476164,609.55,608.11,0.30169279]
[1745572460941,1.43476164,609.54,608.11,0.30169279]
[1745572461134,1.43476164,609.53,608.11,1.34563242]
[1745572461335,1.43476164,609.52,608.11,1.04393963]
[1745572461534,2.60884024,609.51,608.12,0.30171041]
[1745572461734,1.43476164,609.5,608.12,0.30171041]
[1745572461940,1.43476164,609.49,608.12,0.30171041]
[1745572462140,2.60884024,609.48,608.12,0.30171041]
[1745572462339,1.43476164,609.47,608.12,0.30171041]
[1745572462539,2.60884024,609.46,608.12,0.30171041]
[1745572462741,1.43476164,609.45,608.12,0.30171041]
[1745572462941,2.60884024,609.44,608.1,0.957]
[1745572463137,1.43476164,609.43,608.11,0.30171789]
[1745572463335,1.43476164,609.42,608.11,0.30171789]
[1745572463536,1.4346191,609.41,608.11,0.30171789]
[1745572463741,1.4346191,609.4,608.11,0.30171789]
[1745572463940,2.6086977,609.39,608.11,0.30171789]
[1745572464143,2.6086977,609.38,608.11,0.30171789]
[1745572464443,2.6086977,609.37,608.1,0.957]
[1745572464644,1.4346191,609.36,608.11,0.30171626]
[1745572464843,2.6086977,609.35,608.11,0.30171626]
[1745572465044,1.4346191,609.34,608.11,0.30171626]
[1745572465342,1.43462968,609.33,608.11,0.30171626]
[1745572465539,1.43462968,609.32,608.11,0.30171626]
[1745572465738,2.60870828,609.31,608.11,0.30171626]
[1745572466045,2.60870828,609.3,608.11,0.30171626]
[1745572466342,1.43462968,609.29,608.11,0.30171626]
[1745572466643,1.43462968,609.28,608.11,0.30171626]
[1745572466840,1.43462968,609.27,608.11,0.30171626]
[1745572467042,1.43462968,609.26,608.11,0.30171626]
[1745572467337,1.43462968,609.25,608.11,0.30171626]
[1745572467538,2.60870828,609.24,608.11,0.30171626]
[1745572467740,1.43462968,609.23,608.11,0.30171626]
[1745572468042,2.60870828,609.22,608.11,0.30171626]
[1745572468239,1.43462968,609.21,608.11,0.30171626]
[1745572468444,1.43462968,609.2,608.11,0.30171626]
[1745572468646,2.60870828,609.19,608.11,0.30171626]
[1745572468941,2.60870828,609.18,608.11,0.30171626]
[1745572469147,1.43462968,609.17,608.11,0.30171626]
[1745572469345,1.43462968,609.16,608.11,0.30171626]
[1745572469543,2.60870828,609.15,608.11,0.30171626]
[1745572469744,2.12803504,611.1,608.11,0.30171626]
[1745572469745,2.60870828,609.14,608.11,0.30171626]
[1745572470042,1.43462968,609.13,608.11,0.30171626]
[1745572470244,1.43462968,609.12,608.11,0.30171626]
[1745572470546,1.43462968,609.11,608.11,0.30171626]
[1745572470741,1.43462968,609.1,608.11,0.30171626]
[1745572470943,2.60870828,609.09,608.11,0.30171626]
[1745572471141,1.43462968,609.08,608.11,0.30171626]
[1745572471346,2.60870828,609.07,608.11,0.30171626]
[1745572471546,1.43523138,609.06,608.11,0.30171626]
[1745572471747,1.43523138,609.05,608.11,0.30171626]
[1745572472047,2.60930998,609.04,608.11,0.30171626]
[1745572472247,1.43523138,609.03,608.11,0.30171626]
[1745572472444,1.1740786,609.04,608.11,0.30171626]
[1745572472445,1.43523138,609.02,608.11,0.30171626]
[1745572472643,2.60930998,609.01,608.11,0.30171626]
[1745572472843,1.43523138,609.0,608.11,0.30171626]
[1745572473045,1.43539187,608.99,608.11,0.30171626]
[1745572473246,1.43539187,608.98,608.11,0.30171626]
[1745572473447,1.43539187,608.97,608.12,0.788]
[1745572473646,0.28599723,609.61,608.12,0.788]
[1745572473647,2.60947047,608.96,608.13,0.30171367]
[1745572473849,1.43539187,608.95,608.13,0.30171367]
[1745572474049,2.60947047,608.94,608.13,0.30171367]
[1745572474251,1.1740786,608.94,608.13,0.30171367]
[1745572474450,0.28599723,609.61,608.13,0.30171367]
[1745572474950,2.60909244,609.6,608.13,0.30171367]
[1745572475150,1.43513095,609.59,608.14,0.30171497]
[1745572475348,1.43513095,609.58,608.15,0.30171497]
[1745572475545,1.43513095,609.57,608.16,0.30171497]
[1745572475745,2.60909244,609.56,608.17,0.30171497]
[1745572475949,1.43513095,609.55,608.13,0.30171497]
[1745572476152,1.43586705,609.54,608.12,0.788]
[1745572476352,2.60995216,609.53,608.13,0.30172011]
[1745572476551,1.43599067,609.52,608.13,0.30172011]
[1745572476747,1.43599067,609.51,608.13,0.30172011]
[1745572476951,1.43599067,609.5,608.13,0.30172011]
[1745572477251,1.43599067,609.49,608.13,0.30172011]
[1745572477447,1.43599067,609.48,608.13,0.30172011]
[1745572477648,1.43599067,609.47,608.13,0.30172011]
[1745572477850,2.60995216,609.46,608.13,0.30172011]
[1745572478051,1.43599067,609.45,608.14,1.249]
[1745572478247,1.43599067,609.44,608.15,0.30168404]
[1745572478450,1.43599067,609.43,608.15,0.30168404]
[1745572478648,1.43599067,609.42,608.15,0.30168404]
[1745572478951,1.17396149,609.41,608.15,0.30168404]
[1745572479151,0.28593143,609.66,608.15,0.30168404]
[1745572479551,2.61188785,609.65,608.15,0.30168404]
[1745572479758,2.61188785,609.65,608.24,1.04530974]
[1745572479759,1.43684267,609.64,608.24,1.04530974]
[1745572479959,2.61188785,609.63,608.25,0.30168531]
[1745572480256,1.43684267,609.62,608.25,0.30168531]
[1745572480456,1.43684267,609.61,608.25,0.30168531]
[1745572480657,1.43684267,609.6,608.25,0.30168531]
[1745572480857,2.61188785,609.59,608.25,0.30168531]
[1745572481056,1.43684267,609.58,608.25,0.30168531]
[1745572481257,2.61188785,609.57,608.25,0.30168531]
[1745572481556,2.61188785,609.56,608.25,0.30168531]
[1745572481757,1.43684267,609.55,608.25,0.30168531]
[1745572482057,2.61188785,609.54,608.25,0.30168531]
[1745572482357,0.28590442,609.66,608.27,1.04530974]
[1745572482554,0.28590442,609.66,608.28,0.30168531]
[1745572482960,2.61224373,609.65,608.28,0.30168531]
[1745572483159,1.43684858,609.64,608.28,0.30168531]
[1745572483459,1.43684858,609.63,608.28,0.30168531]
[1745572483661,1.43684858,609.62,608.27,1.04530974]
[1745572483854,1.43684858,609.61,608.28,0.30171109]
[1745572484054,1.43684858,609.6,608.28,0.30171109]
[1745572484367,2.61224373,609.59,608.27,1.04530974]
[1745572484561,1.43684858,609.58,608.28,0.30171108]
[1745572484761,1.43684858,609.57,608.28,0.30171108]
[1745572485060,1.43684858,609.56,608.25,1.04530974]
[1745572485260,2.61224373,609.55,608.26,0.30171095]
[1745572485560,1.43684858,609.54,608.26,0.30171095]
[1745572485760,2.61224373,609.53,608.26,0.30171095]
[1745572485957,2.61224373,609.52,608.25,1.04530974]
[1745572486156,1.43684858,609.51,608.25,1.04530974]
[1745572486355,1.43684858,609.5,608.25,1.04530974]
[1745572486562,1.43684858,609.49,608.25,1.04530974]
[1745572486762,1.43684858,609.48,608.26,0.30169979]
[1745572486960,1.43684858,609.47,608.26,0.30169979]
[1745572487160,2.61224373,609.46,608.26,0.30169979]
[1745572487457,1.43684858,609.45,608.25,1.04530974]
[1745572487657,2.61224373,609.44,608.26,0.30169692]
[1745572487856,1.43684858,609.43,608.26,0.30169692]
[1745572488163,1.17539515,609.42,608.26,0.30169692]
[1745572488463,0.28590324,609.64,608.19,1.04530974]
[1745572488661,0.28590324,609.64,608.2,0.30169985]
[1745572488864,2.61378823,609.63,608.2,0.30169985]
[1745572489057,1.43771879,609.62,608.2,0.30169985]
[1745572489260,1.17606944,609.63,608.2,0.30169985]
[1745572489261,1.43771879,609.61,608.2,0.30169985]
[1745572489461,1.43771879,609.6,608.2,0.30169985]
[1745572489661,1.43771879,609.59,608.2,0.30169985]
[1745572489862,1.43771879,609.58,608.2,0.30169985]
[1745572490063,1.43771879,609.57,608.2,0.30169985]
[1745572490259,1.43771879,609.56,608.2,0.30169985]
[1745572490460,2.61378823,609.55,608.2,0.30169985]
[1745572490757,1.43771879,609.54,608.21,0.30169985]
[1745572490963,1.43771879,609.53,608.15,0.30169985]
[1745572491155,1.43771879,609.53,608.14,2.29430974]
[1745572491156,2.61378823,609.52,608.16,0.30169985]
[1745572491356,1.43771879,609.51,608.16,0.30169985]
[1745572491561,1.17606944,609.52,608.17,0.30169985]
[1745572491857,2.61419011,609.51,608.18,0.30169985]
[1745572492062,1.43812067,609.5,608.14,2.29430974]
[1745572492258,1.43812067,609.49,608.15,0.30168688]
[1745572492456,2.61419011,609.48,608.15,0.30168688]
[1745572492657,2.61419011,609.47,608.15,0.30168688]
[1745572492855,1.43812067,609.46,608.18,1.04530974]
[1745572493057,1.43812067,609.45,608.19,0.30168688]
[1745572493261,1.43812067,609.44,608.19,0.30168688]
[1745572493563,2.61419011,609.43,608.18,1.04530974]
[1745572493762,1.43812067,609.42,608.19,0.30168483]
[1745572493963,1.43815572,609.41,608.19,0.30168483]
[1745572494263,0.28592086,609.67,608.19,0.30168483]
[1745572494659,0.28592086,609.67,608.2,0.863]
[1745572494863,2.61452259,609.66,608.21,0.30168483]
[1745572495059,1.43812698,609.65,608.21,1.40268483]
[1745572495359,1.43812698,609.64,608.22,0.30169024]
[1745572495558,1.43812698,609.63,608.22,0.30169024]
[1745572495760,1.43812698,609.62,608.22,0.30169024]
[1745572495963,1.43812754,609.61,608.23,1.04530974]
[1745572496265,1.43812754,609.6,608.24,0.30169024]
[1745572496465,1.43812754,609.59,608.24,0.30169024]
[1745572496660,1.43812754,609.58,608.23,1.04530974]
[1745572496862,1.43812754,609.57,608.24,0.30167605]
[1745572497060,2.61452315,609.56,608.24,0.30167605]
[1745572497259,1.43812754,609.55,608.24,0.30167605]
[1745572497463,2.61452315,609.54,608.24,0.30167605]
[1745572497659,1.43812754,609.53,608.24,0.30167605]
[1745572497860,1.43812754,609.52,608.24,0.30167605]
[1745572498063,2.61452315,609.51,608.24,0.30167605]
[1745572498262,1.43812754,609.5,608.23,1.04530974]
[1745572498466,2.61452315,609.49,608.24,0.30168502]
[1745572498666,1.43812754,609.48,608.24,0.30168502]
[1745572498867,2.61452315,609.47,608.25,1.28]
[1745572499162,1.43812754,609.46,608.26,0.30168502]
[1745572499364,1.43812754,609.45,608.26,0.30168502]
[1745572499565,1.43812754,609.44,608.26,0.30168502]
[1745572499765,1.43812754,609.43,608.25,1.28]
[1745572499967,1.43812754,609.42,608.26,0.30168536]
[1745572500267,2.61452315,609.41,608.26,0.30168536]
[1745572500461,1.43812754,609.4,608.26,0.30168536]
[1745572500665,1.43812754,609.39,608.26,0.30168536]
[1745572500862,1.43812754,609.38,608.26,0.30168536]
[1745572501062,1.43780532,609.37,608.26,0.30168536]
[1745572501262,1.43780532,609.36,608.26,0.30168536]
[1745572501466,1.43780532,609.35,608.26,0.30168536]
[1745572501660,1.43780532,609.34,608.26,0.30168536]
[1745572501866,1.43780532,609.33,608.26,0.30168536]
[1745572502064,2.61420093,609.32,608.26,0.30168536]
[1745572502261,1.43779105,609.31,608.26,0.30168536]
[1745572502562,1.43779105,609.3,608.27,0.3016939]
[1745572502762,2.61418666,609.29,608.26,0.3016939]
[1745572502961,2.61418666,609.28,608.27,0.3016939]
[1745572503161,1.43779105,609.27,608.26,0.3016939]
[1745572503361,2.61418666,609.26,608.26,0.3016939]
[1745572503566,1.43779105,609.25,608.26,0.3016939]
[1745572503864,1.43779105,609.24,608.25,1.28]
[1745572504063,1.43823006,609.23,608.26,0.30169398]
[1745572504264,1.43823006,609.22,608.26,0.30169398]
[1745572504464,2.61462567,609.21,608.26,0.30169398]
[1745572504668,1.43823006,609.2,608.26,0.30169398]
[1745572504870,2.61462567,609.19,608.26,0.30169398]
[1745572505168,1.43823006,609.18,608.26,0.30169398]
[1745572505363,1.43823006,609.17,608.26,0.30169398]
[1745572505669,2.61462567,609.16,608.27,0.30170076]
[1745572505862,2.61462567,609.16,608.25,1.28]
[1745572505863,1.43823006,609.15,608.26,0.30170076]
[1745572506064,1.43823006,609.14,608.25,1.28]
[1745572506266,2.61462567,609.13,608.26,0.30170074]
[1745572506463,1.43823006,609.12,608.26,0.30170074]
[1745572506665,1.43823006,609.11,608.26,0.30170074]
[1745572506871,1.43823006,609.1,608.26,0.30170074]
[1745572507174,2.61462567,609.09,608.27,0.3016997]
[1745572507474,1.43823006,609.08,608.28,0.3016997]
[1745572507674,2.61462567,609.07,608.26,0.3016997]
[1745572507871,1.43823006,609.06,608.27,0.3016997]
[1745572508075,1.43823006,609.06,608.25,1.28]
[1745572508076,1.43823006,609.05,608.26,0.3016997]
[1745572508275,1.43823006,609.04,608.26,0.3016997]
[1745572508477,1.43823006,609.03,608.26,0.3016997]
[1745572508676,1.43823006,609.02,608.26,0.3016997]
[1745572508878,2.61462567,609.01,608.26,0.3016997]
[1745572509074,1.43823006,609.0,608.26,0.3016997]
[1745572509272,2.61462567,608.99,608.26,0.3016997]
[1745572509473,1.43816551,608.98,608.26,0.3016997]
[1745572509677,1.43816551,608.97,608.26,0.3016997]
[1745572509976,1.43816551,608.96,608.26,0.3016997]
[1745572510172,1.43816551,608.95,608.26,0.3016997]
[1745572510376,1.43816551,608.94,608.26,0.3016997]
[1745572510575,1.43816551,608.93,608.26,0.3016997]
[1745572510877,1.43816551,608.92,608.25,1.28]
[1745572511077,1.43816551,608.91,608.25,1.28]
[1745572511278,1.43816551,608.9,608.25,1.28]
[1745572511477,2.61456112,608.89,608.25,1.28]
[1745572511678,1.43816551,608.88,608.25,1.28]
[1745572511878,2.61456112,608.87,608.25,1.28]
[1745572512078,1.43816551,608.86,608.25,1.28]
[1745572512278,2.61456112,608.85,608.25,1.28]
[1745572512474,1.43816551,608.84,608.25,1.28]
[1745572512679,1.43816551,608.83,608.25,1.28]
[1745572512880,1.43816551,608.82,608.25,1.28]
[1745572513079,1.43816551,608.81,608.25,1.28]
[1745572513280,1.43816551,608.8,608.25,1.28]
[1745572513579,1.43816551,608.79,608.25,1.28]
[1745572513780,1.43816551,608.78,608.25,1.28]
[1745572513978,1.43816551,608.77,608.25,1.28]
[1745572514178,2.61456112,608.76,608.25,1.28]
[1745572514379,1.43816551,608.75,608.25,1.28]
[1745572514680,2.61456112,608.74,608.25,1.28]
[1745572514874,1.43816551,608.73,608.25,1.28]
[1745572515081,1.43816551,608.72,608.25,1.28]
[1745572515374,1.43816551,608.71,608.25,1.28]
[1745572515574,1.43816551,608.7,608.25,1.28]
[1745572515779,1.43816551,608.69,608.25,1.28]
[1745572515976,1.43816551,608.68,608.25,1.28]
[1745572516177,2.61456112,608.67,608.25,1.28]
[1745572516475,1.17639561,608.67,608.25,1.28]
[1745572516683,1.43752286,608.66,608.25,1.28]
[1745572516882,2.61391847,608.65,608.25,1.28]
[1745572517181,1.43752286,608.64,608.25,1.28]
[1745572517482,2.61391847,608.63,608.25,1.28]
[1745572517777,1.43752286,608.62,608.01,1.04530974]
[1745572517978,1.43752286,608.61,608.02,0.30175406]
[1745572518182,2.61391847,608.6,608.02,0.30175406]
[1745572518383,1.43752286,608.59,608.03,1.04530974]
[1745572518584,1.43752286,608.58,608.04,0.30175406]
[1745572518783,1.43752286,608.57,608.04,0.30175406]
[1745572518984,1.43752286,608.56,608.04,0.30175406]
[1745572519183,2.61391847,608.55,608.04,0.30175406]
[1745572519381,1.43752286,608.54,608.05,0.30178342]
[1745572519579,2.61391847,608.53,608.06,0.30178342]
[1745572519881,2.61391847,608.52,608.07,0.30178342]
[1745572520084,1.43674957,608.51,608.04,0.30178342]
[1745572520278,1.43674957,608.5,608.05,0.30178342]
[1745572520482,1.17639561,608.49,608.06,0.30178342]
[1745572520684,1.43621361,608.48,608.04,0.30178342]
[1745572520882,1.43621361,608.47,608.05,0.30178342]
[1745572521081,1.43621361,608.46,607.98,0.30178342]
[1745572521283,1.17639561,608.45,607.98,0.30178342]
[1745572522186,1.17639561,608.44,607.98,0.30178342]
[1745572522585,1.17639561,608.43,607.98,0.30178342]
[1745572522881,1.17639561,608.42,607.98,0.30178342]
[1745572523388,1.17639561,608.41,607.86,0.30178342]
[1745572523584,1.17639561,608.4,607.87,0.30178342]
[1745572523786,1.17639561,608.4,607.88,0.30178342]
[1745572523988,1.17639561,608.4,607.85,1.04530974]
[1745572524184,1.17639561,608.39,607.86,0.30183426]
[1745572524589,1.17639561,608.38,607.86,0.30183426]
[1745572524987,2.13076793,610.36,607.86,0.30183426]
[1745572525189,1.43412449,610.35,607.86,0.30183426]
[1745572525487,1.43412449,610.34,607.87,1.04530974]
[1745572525687,2.63871671,610.33,607.88,0.30183426]
[1745572525888,1.43412449,610.32,607.88,0.30183426]
[1745572526092,1.43412449,610.31,607.88,0.30183426]
[1745572526290,2.63871671,610.3,607.88,0.30183426]
[1745572526492,2.63871671,610.29,607.88,0.30183426]
[1745572526787,2.63871671,610.28,607.88,0.30183426]
[1745572526990,1.43412449,610.27,607.88,0.30183426]
[1745572527292,1.4332459,610.26,607.88,0.30183426]
[1745572527590,1.4332459,610.25,607.88,0.30183426]
[1745572527790,1.4332459,610.24,607.88,0.30183426]
[1745572527986,2.63783812,610.23,607.88,0.30183426]
[1745572528186,1.4332459,610.22,607.89,0.30183426]
[1745572528387,1.4332459,610.21,607.8,0.30183426]
[1745572528692,2.63783812,610.2,607.79,0.28592791]
[1745572528894,2.63783812,610.19,607.8,0.3018351]
[1745572529093,1.43265218,610.18,607.8,0.3018351]
[1745572529287,1.43265218,610.17,607.8,0.3018351]
[1745572529487,1.43265218,610.16,607.8,0.3018351]
[1745572529691,1.43265218,610.15,607.8,0.3018351]
[1745572529887,1.43265218,610.14,607.79,0.28595375]
[1745572530092,2.6372444,610.13,607.8,0.3018351]
[1745572530394,1.43265218,610.12,607.79,0.28595375]
[1745572530595,1.43265218,610.11,607.8,0.30183661]
[1745572530788,1.43239164,610.1,607.8,0.30183661]
[1745572531092,1.43239164,610.09,607.8,0.30183661]
[1745572531292,2.63698386,610.08,607.8,0.30183661]
[1745572531493,1.43239164,610.07,607.8,0.30183661]
[1745572531692,2.63698386,610.06,607.8,0.30183661]
[1745572531889,1.43239164,610.05,607.8,0.30183661]
[1745572532092,1.43239164,610.04,607.8,0.30183661]
[1745572532293,1.43239164,610.03,607.8,0.30183661]
[1745572532596,1.43239164,610.02,607.8,0.30183661]
[1745572532794,1.43239164,610.01,607.65,0.30183661]
[1745572532996,1.43239164,610.0,607.79,0.28596903]
[1745572533295,1.43239164,609.99,607.8,0.30183661]
[1745572533495,1.43239164,609.98,607.65,0.30183661]
[1745572533697,1.43239164,609.97,607.66,0.30183661]
[1745572533889,2.63698386,609.96,607.67,0.30183661]
[1745572534192,2.63698386,609.95,607.68,0.30183661]
[1745572534397,1.43239164,609.94,607.69,0.30183661]
[1745572534595,1.43239164,609.93,607.67,0.30183661]
[1745572534791,1.20459222,609.95,607.66,0.28599253]
[1745572534792,1.43239164,609.92,607.68,0.30183661]
[1745572534991,1.43239164,609.91,607.69,0.30183661]
[1745572535291,1.43239164,609.9,607.7,0.30183661]
[1745572535491,1.43239164,609.89,607.71,0.30183661]
[1745572535693,1.43239164,609.88,607.67,0.30183661]
[1745572535892,1.43239164,609.87,607.68,0.30183661]
[1745572536095,1.43239164,609.86,607.69,0.30183661]
[1745572536293,1.43187969,609.85,607.67,0.30183661]
[1745572536493,1.43187969,609.85,607.66,0.28599253]
[1745572536494,1.43187969,609.84,607.68,0.30183661]
[1745572536698,2.63647191,609.83,607.67,0.30183661]
[1745572536892,2.63647191,609.83,607.66,0.28599253]
[1745572536893,1.43187969,609.82,607.68,0.30183661]
[1745572537097,1.43187969,609.81,607.67,0.30183661]
[1745572537295,2.63647191,609.8,607.67,0.30183661]
[1745572537494,2.63647191,609.79,607.67,0.30183661]
[1745572537695,1.43187969,609.78,607.67,0.30183661]
[1745572537899,1.43187969,609.77,607.67,0.30183661]
[1745572538095,2.63488589,609.76,607.67,0.30183661]
[1745572538394,1.43187969,609.75,607.67,0.30183661]
[1745572538599,2.63488589,609.74,607.67,0.30183661]
[1745572538900,1.43187969,609.73,607.68,0.30183661]
[1745572539097,1.43187969,609.72,607.66,0.28600546]
[1745572539400,2.63488589,609.71,607.67,0.30183661]
[1745572539600,1.43187969,609.7,607.67,0.30183661]
[1745572539899,1.43187969,609.69,607.67,0.30183661]
[1745572540100,1.43187969,609.68,607.67,0.30183661]
[1745572540399,2.63488589,609.67,607.67,0.30183661]
[1745572540600,1.43187969,609.66,607.85,1.04530974]
[1745572540799,1.43187969,609.65,607.86,0.30183661]
[1745572541001,2.63488589,609.64,607.86,0.30183661]
[1745572541197,1.43187969,609.63,607.86,0.30183661]
[1745572541401,1.43187969,609.62,607.86,0.30183661]
[1745572541598,1.43187969,609.61,607.87,0.3017878]
[1745572541906,2.63488589,609.6,607.88,0.3017878]
[1745572542099,1.43187969,609.59,607.86,0.3017878]
[1745572542401,2.63488589,609.58,607.86,0.3017878]
[1745572542602,1.43187969,609.57,607.86,0.3017878]
[1745572542902,1.43187969,609.56,607.86,0.3017878]
[1745572543197,2.63488589,609.55,607.86,0.3017878]
[1745572543404,1.43187969,609.54,607.87,1.04530974]
[1745572543598,1.43187969,609.53,607.88,0.3017878]
[1745572543798,1.43187969,609.52,607.88,0.3017878]
[1745572544102,2.63488589,609.51,607.89,0.30177429]
[1745572544302,1.43187969,609.5,607.88,0.30177429]
[1745572544503,2.63488589,609.49,607.89,0.30177429]
[1745572544698,1.43187969,609.48,607.88,0.30177429]
[1745572544898,2.63488589,609.47,607.89,0.3017743]
[1745572545098,1.43187969,609.46,607.88,0.3017743]
[1745572545297,2.63558145,609.45,607.89,0.3017743]
[1745572545604,1.43257525,609.44,607.99,1.04530974]
[1745572545803,1.43257525,609.43,608.0,0.3017743]
[1745572546004,1.43257525,609.42,608.0,0.3017743]
[1745572546205,2.63558145,609.41,608.0,0.3017743]
[1745572546504,2.63558145,609.4,608.0,0.3017743]
[1745572546705,1.43257525,609.39,608.0,0.3017743]
[1745572546905,1.43257525,609.38,608.0,0.3017743]
[1745572547100,1.43257525,609.37,608.0,0.3017743]
[1745572547302,1.43257525,609.36,608.0,0.3017743]
[1745572547504,0.28599135,609.5,608.0,0.3017743]
[1745572547505,2.63558145,609.35,608.0,0.3017743]
[1745572547705,1.43257525,609.34,608.0,0.3017743]
[1745572547908,1.43257525,609.33,608.0,0.3017743]
[1745572548104,1.43257525,609.32,608.02,1.04530974]
[1745572548406,2.63558145,609.31,608.03,0.30176016]
[1745572548606,1.43257525,609.3,608.03,0.30176016]
[1745572548907,1.2030062,609.31,608.03,0.30176016]
[1745572548908,1.4334538,609.29,608.03,0.30176016]
[1745572549101,2.63646,609.28,608.03,0.30176016]
[1745572549305,1.4334538,609.27,608.03,0.30176016]
[1745572549505,1.4334538,609.26,608.03,0.30176016]
[1745572549806,2.63646,609.25,608.03,0.30176016]
[1745572550108,2.63646,609.25,608.07,1.04530974]
[1745572550109,1.4334538,609.24,608.07,1.04530974]
[1745572550305,1.4334538,609.23,608.08,0.30176016]
[1745572550508,1.4334538,609.22,608.08,0.30176016]
[1745572550708,1.4334538,609.21,608.08,0.30176016]
[1745572550909,1.4334538,609.2,608.08,0.30176016]
[1745572551113,1.4334538,609.19,608.08,0.30176016]
[1745572551304,2.63646,609.18,608.09,0.30176691]
[1745572551504,1.4334538,609.17,608.1,0.30176691]
[1745572551705,1.2030062,609.18,608.08,0.30176691]
[1745572551910,1.43344113,609.17,608.09,0.30176691]
[1745572552105,1.43344113,609.16,608.08,0.30176691]
[1745572552410,1.43344113,609.15,608.08,0.30176691]
[1745572552609,1.43357456,609.14,608.08,0.30176691]
[1745572552906,0.28599135,609.51,608.08,0.30176691]
[1745572552907,2.63658076,609.13,608.08,0.30176691]
[1745572553110,1.43357456,609.12,608.05,0.30176691]
[1745572553310,1.43357456,609.11,608.05,0.30176691]
[1745572553511,1.43357456,609.1,608.05,0.30176691]
[1745572553710,1.43357456,609.09,608.05,0.30176691]
[1745572553911,2.63658076,609.08,608.05,0.30176691]
[1745572554108,1.43357456,609.07,608.05,0.30176691]
[1745572554406,2.63658076,609.06,608.05,0.30176691]
[1745572554611,1.43357456,609.05,608.05,0.30176691]
[1745572554811,2.63658076,609.04,608.06,0.30176691]
[1745572555112,1.43357456,609.03,608.07,0.30176691]
[1745572555311,1.43357456,609.02,608.04,0.30176691]
[1745572555611,1.43357456,609.01,608.04,0.30176691]
[1745572555814,2.63658076,609.0,608.04,0.30176691]
[1745572556013,1.43357456,608.99,608.04,0.30176691]
[1745572556209,1.43357456,608.98,608.04,0.30176691]
[1745572556508,1.43357456,608.97,608.04,0.30176691]
[1745572556712,1.43357456,608.96,608.04,0.30176691]
[1745572556913,1.43357456,608.95,608.04,0.30176691]
[1745572557113,1.43357456,608.94,608.04,0.30176691]
[1745572557315,2.63658076,608.93,608.04,0.30176691]
[1745572557614,1.43357456,608.92,607.92,0.30176691]
[1745572557813,1.43357456,608.91,607.93,0.30176691]
[1745572558014,1.43357456,608.9,607.92,0.30176691]
[1745572558211,1.43357456,608.89,607.92,0.30176691]
[1745572558410,1.43357456,608.88,607.92,0.30176691]
[1745572558615,1.43357456,608.87,607.92,0.30176691]
[1745572558811,1.43357456,608.86,607.92,0.30176691]
[1745572559014,1.43357456,608.85,607.92,0.30176691]
[1745572559211,0.2860466,609.45,607.91,1.04530974]
[1745572559212,2.63658076,608.84,607.93,0.30179029]
[1745572559517,1.43357456,608.83,607.94,0.30179029]
[1745572559714,1.43357456,608.83,607.91,1.04530974]
[1745572559715,1.43357456,608.82,607.92,0.30179029]
[1745572560016,1.43357456,608.81,607.92,0.30179029]
[1745572560317,1.43357456,608.8,607.92,0.30179029]
[1745572560515,1.43357456,608.79,607.91,0.30179029]
[1745572560816,2.63658076,608.78,607.92,0.30180755]
[1745572561018,1.43357456,608.77,607.91,0.30180755]
[1745572561217,1.43454848,608.76,607.92,0.30180755]
[1745572561515,2.63755468,608.75,607.93,0.30180755]
[1745572561710,1.43454848,608.74,607.9,1.04530974]
[1745572561912,1.43454848,608.73,607.91,0.30182462]
[1745572562118,1.43454848,608.72,607.91,0.30182462]
[1745572562309,1.43454848,608.71,607.91,0.30182462]
[1745572562618,1.43454848,608.7,607.95,1.04530974]
[1745572562811,1.43478937,608.69,607.96,0.30182462]
[1745572563012,1.43478937,608.68,607.96,0.30182462]
[1745572563211,2.63779557,608.67,607.96,0.30182462]
[1745572563410,1.43478937,608.66,607.96,0.30182462]
[1745572563613,1.43478937,608.65,607.96,0.30182462]
[1745572563817,2.63779557,608.64,607.96,0.30182462]
[1745572564016,2.63779557,608.63,607.96,0.30182462]
[1745572564217,1.43478937,608.62,607.96,0.30182462]
[1745572564415,1.43478937,608.61,607.96,0.30182462]
[1745572564616,2.63794884,608.6,607.93,0.30182462]
[1745572564817,1.43494264,608.59,607.93,0.30182462]
[1745572565017,2.63794884,608.58,607.92,1.04530974]
[1745572565217,1.43494264,608.57,607.93,0.30184275]
[1745572565415,1.43494264,608.56,607.93,0.30184275]
[1745572565616,1.43494264,608.55,607.93,0.30184275]
[1745572565813,1.43494264,608.54,607.93,0.30184275]
[1745572566013,1.43494264,608.53,607.93,0.30184275]
[1745572566313,2.63794884,608.52,607.93,0.30184275]
[1745572566515,1.4352137,608.51,607.92,1.04530974]
[1745572566718,1.43526679,608.5,607.93,0.30179214]
[1745572566918,1.2030062,608.52,607.93,0.30179214]